Department Family,Entity,Date,Expense Type,Expense Area,Supplier,Transaction Number,Amount,VAT Registration Number
Department of Health,Chelsea and Westminster Hospital NHS Foundation Trust,04-Jan-11,AUC,Chelsea & Westminster NHS Foundation Holding,BAM CONSTRUCTION LTD,6257024,"1,281,443.40",
Department of Health,Chelsea and Westminster Hospital NHS Foundation Trust,06-Jan-11,AUC,Chelsea & Westminster NHS Foundation Holding,ENSIGNA CONSTRUCTION LTD,6258658,"36,058.34",
Department of Health,Chelsea and Westminster Hospital NHS Foundation Trust,06-Jan-11,AUC,Chelsea & Westminster NHS Foundation Holding,ENSIGNA CONSTRUCTION LTD,6258659,"40,814.10",
Department of Health,Chelsea and Westminster Hospital NHS Foundation Trust,06-Jan-11,CONSULTANCY CHARGES,Finance ,LINEA GROUP LIMITED,6259646,"21,600.00",
Department of Health,Chelsea and Westminster Hospital NHS Foundation Trust,06-Jan-11,TELEPHONE RENTAL INC. LINES,IC&T & EPR,BRITISH TELECOMM PLC,6259720,"44,865.54",
Department of Health,Chelsea and Westminster Hospital NHS Foundation Trust,10-Jan-11,AUC,Chelsea & Westminster NHS Foundation Holding,POINT TO POINT LIMITED,6259852,"32,773.68",
Department of Health,Chelsea and Westminster Hospital NHS Foundation Trust,10-Jan-11,DRUGS,HIV/GUM,HEALTHCARE AT HOME LIMITED,6258774,"208,671.04",
Department of Health,Chelsea and Westminster Hospital NHS Foundation Trust,10-Jan-11,RECHARGE ACCOUNTS,Chelsea & Westminster NHS Foundation Holding,NHS SUPPLY CHAIN,6256219,"106,863.44",
Department of Health,Chelsea and Westminster Hospital NHS Foundation Trust,10-Jan-11,RECHARGE ACCOUNTS,Chelsea & Westminster NHS Foundation Holding,NHS SUPPLY CHAIN,6258462,"105,256.17",
Department of Health,Chelsea and Westminster Hospital NHS Foundation Trust,10-Jan-11,STOCK,Chelsea & Westminster NHS Foundation Holding,ROCHE PRODUCTS LTD,6258947,"29,888.89",
Department of Health,Chelsea and Westminster Hospital NHS Foundation Trust,10-Jan-11,STOCK,Chelsea & Westminster NHS Foundation Holding,ST GEORGE'S HEALTHCARE NHS TRUST..,6256743,"53,757.00",
Department of Health,Chelsea and Westminster Hospital NHS Foundation Trust,10-Jan-11,VICTORIA SHC SLA,Service Level Agreements,WESTMINSTER PCT COM,6169596,"29,293.00",
Department of Health,Chelsea and Westminster Hospital NHS Foundation Trust,10-Jan-11,VIRAL RESISTANCE TESTING,Anaesthetics,LAB 21 LTD,6250975,"25,750.00",
Department of Health,Chelsea and Westminster Hospital NHS Foundation Trust,11-Jan-11,NATIONAL BLOOD SERVICE CONTRACT,Service Level Agreements,NHS BLOOD AND TRANSPLANT,6258896,"81,912.12",
Department of Health,Chelsea and Westminster Hospital NHS Foundation Trust,11-Jan-11,NON DOMESTIC RATES AND COUNCIL TAXES,Facilities Management,ROYAL BOROUGH OF KENSINGTON & CHELSEA.....,6260047,"135,517.52",
Department of Health,Chelsea and Westminster Hospital NHS Foundation Trust,11-Jan-11,PREPAYMENTS,Chelsea & Westminster NHS Foundation Holding,ROYAL BOROUGH OF KENSINGTON & CHELSEA.....,6260047,"27,103.48"
Department of Health,Chelsea and Westminster Hospital NHS Foundation Trust,13-Jan-11,AUC,Chelsea & Westminster NHS Foundation Holding,SOFTCAT LIMITED,6260304,"58,051.27"
Department of Health,Chelsea and Westminster Hospital NHS Foundation Trust,13-Jan-11,AUC,Chelsea & Westminster NHS Foundation Holding,THYSSENKRUPP ELEVATOR UK LTD,6256402,"59,215.42"
Department of Health,Chelsea and Westminster Hospital NHS Foundation Trust,13-Jan-11,CLINICAL ENGINEERING SLA,Facilities Management,NHS SUPPLY CHAIN,6221798,0
Department of Health,Chelsea and Westminster Hospital NHS Foundation Trust,13-Jan-11,CREDITORS < 1 YEAR NON NHS,Chelsea & Westminster NHS Foundation Holding,DUNPHYS LTD,6259969,"36,670.00"
Department of Health,Chelsea and Westminster Hospital NHS Foundation Trust,13-Jan-11,GAS,Facilities Management,TOTAL GAS & POWER LTD,6258452,"65,273.19"
Department of Health,Chelsea and Westminster Hospital NHS Foundation Trust,13-Jan-11,OLIMPIC CARS,Facilities Management,OLYMPIC (SOUTH) LTD,6259704,"66,785.98"
Department of Health,Chelsea and Westminster Hospital NHS Foundation Trust,13-Jan-11,RECHARGE ACCOUNTS,Chelsea & Westminster NHS Foundation Holding,NHS SUPPLY CHAIN,6258461,"93,114.79"
Department of Health,Chelsea and Westminster Hospital NHS Foundation Trust,13-Jan-11,STOCK,Chelsea & Westminster NHS Foundation Holding,ABBOTT LABORATORIES LTD,6260246,"31,537.00"
Department of Health,Chelsea and Westminster Hospital NHS Foundation Trust,13-Jan-11,STOCK,Chelsea & Westminster NHS Foundation Holding,ALLIANCE HEALTHCARE (DISTRIBUTION)LTD,6260148,"45,037.16"
Department of Health,Chelsea and Westminster Hospital NHS Foundation Trust,13-Jan-11,STOCK,Chelsea & Westminster NHS Foundation Holding,GILEAD SCIENCES LTD.,6260277,"213,882.61"
Department of Health,Chelsea and Westminster Hospital NHS Foundation Trust,13-Jan-11,STOCK,Chelsea & Westminster NHS Foundation Holding,GILEAD SCIENCES LTD.,6260286,"158,251.12"
Department of Health,Chelsea and Westminster Hospital NHS Foundation Trust,13-Jan-11,STOCK,Chelsea & Westminster NHS Foundation Holding,GILEAD SCIENCES LTD.,6260287,"38,636.12"
Department of Health,Chelsea and Westminster Hospital NHS Foundation Trust,13-Jan-11,STOCK,Chelsea & Westminster NHS Foundation Holding,JANSSEN-CILAG LTD,6260266,"100,938.61"
Department of Health,Chelsea and Westminster Hospital NHS Foundation Trust,13-Jan-11,STOCK,Chelsea & Westminster NHS Foundation Holding,JANSSEN-CILAG LTD,6260267,"144,694.79"
Department of Health,Chelsea and Westminster Hospital NHS Foundation Trust,13-Jan-11,TRANSITIONAL CREDITORS ACCOUNT,Chelsea & Westminster NHS Foundation Holding,NHS SUPPLY CHAIN,6221798,"31,354.69"
Department of Health,Chelsea and Westminster Hospital NHS Foundation Trust,13-Jan-11,TRANSITIONAL CREDITORS ACCOUNT,Chelsea & Westminster NHS Foundation Holding,NHS SUPPLY CHAIN,6260088,"-31,354.69"
Department of Health,Chelsea and Westminster Hospital NHS Foundation Trust,17-Jan-11,AUC,Chelsea & Westminster NHS Foundation Holding,GE HEALTHCARE CLINICAL SYSTEMS UK LTD.,6260588,"114,835.10"
Department of Health,Chelsea and Westminster Hospital NHS Foundation Trust,17-Jan-11,AUC,Chelsea & Westminster NHS Foundation Holding,LONGCROSS CONSTRUCTION LTD,6259348,"660,697.08"
Department of Health,Chelsea and Westminster Hospital NHS Foundation Trust,17-Jan-11,AUC,Chelsea & Westminster NHS Foundation Holding,LONGCROSS CONSTRUCTION LTD,6259653,"120,160.16"
Department of Health,Chelsea and Westminster Hospital NHS Foundation Trust,17-Jan-11,AUC,Chelsea & Westminster NHS Foundation Holding,LONGCROSS CONSTRUCTION LTD,6259655,"67,159.51"
Department of Health,Chelsea and Westminster Hospital NHS Foundation Trust,17-Jan-11,DRUGS,HIV/GUM,HEALTHCARE AT HOME LIMITED,6259351,"136,352.03"
Department of Health,Chelsea and Westminster Hospital NHS Foundation Trust,17-Jan-11,RECHARGE ACCOUNTS,Chelsea & Westminster NHS Foundation Holding,NHS SUPPLY CHAIN,6256739,"90,552.46"
Department of Health,Chelsea and Westminster Hospital NHS Foundation Trust,17-Jan-11,STOCK,Chelsea & Westminster NHS Foundation Holding,BOEHRINGER INGELHEIM LIMITED,6260289,"53,932.50"
Department of Health,Chelsea and Westminster Hospital NHS Foundation Trust,17-Jan-11,STOCK,Chelsea & Westminster NHS Foundation Holding,BRISTOL-MYERS SQUIBB PHARMACEUTICALS LIMITED,6260795,"42,601.25"
Department of Health,Chelsea and Westminster Hospital NHS Foundation Trust,17-Jan-11,STOCK,Chelsea & Westminster NHS Foundation Holding,BRISTOL-MYERS SQUIBB PHARMACEUTICALS LIMITED,6260797,"72,093.93"
Department of Health,Chelsea and Westminster Hospital NHS Foundation Trust,17-Jan-11,STOCK,Chelsea & Westminster NHS Foundation Holding,GILEAD SCIENCES LTD.,6260566,"318,885.60"
Department of Health,Chelsea and Westminster Hospital NHS Foundation Trust,18-Jan-11,MSSE (Tech Services Consum),Medicine & A&E,DRAGER MEDICAL UK LTD,6261025,"6,658.00"
Department of Health,Chelsea and Westminster Hospital NHS Foundation Trust,18-Jan-11,MSSE (Tech Services Consum),Peri - Op,DRAGER MEDICAL UK LTD,6261025,"36,915.85"
Department of Health,Chelsea and Westminster Hospital NHS Foundation Trust,18-Jan-11,MSSE (Tech Services Consum),Women's & Neonatal Services,DRAGER MEDICAL UK LTD,6261025,"2,048.00"
Department of Health,Chelsea and Westminster Hospital NHS Foundation Trust,18-Jan-11,MSSE (Tech Services Consum),Children's Services,DRAGER MEDICAL UK LTD,6261025,"5,634.00"
Department of Health,Chelsea and Westminster Hospital NHS Foundation Trust,18-Jan-11,MSSE (Tech Services Consum),Children's Services,DRAGER MEDICAL UK LTD,6261025,"2,048.00"
Department of Health,Chelsea and Westminster Hospital NHS Foundation Trust,18-Jan-11,SOFTWARE LICENCES & MAINTENANCE,IC&T & EPR,BT GLOBAL SERVICES,6259959,"39,522.56"
Department of Health,Chelsea and Westminster Hospital NHS Foundation Trust,18-Jan-11,STOCK,Chelsea & Westminster NHS Foundation Holding,BRISTOL-MYERS SQUIBB PHARMACEUTICALS LIMITED,6260837,"146,887.52"
Department of Health,Chelsea and Westminster Hospital NHS Foundation Trust,20-Jan-11,AUC,Chelsea & Westminster NHS Foundation Holding,HITACHI MEDICAL SYSTEMS UK LTD,6259935,123008.4
Department of Health,Chelsea and Westminster Hospital NHS Foundation Trust,20-Jan-11,AUC,Chelsea & Westminster NHS Foundation Holding,NORLAND MANAGED SERVICES,6261569,"37,267.42"
Department of Health,Chelsea and Westminster Hospital NHS Foundation Trust,20-Jan-11,PATHOLOGY SLA (HHT),Service Level Agreements,IMPERIAL COLLEGE HEALTHCARE NHS TRUST,6260172,"1,102,536.00"
Department of Health,Chelsea and Westminster Hospital NHS Foundation Trust,20-Jan-11,RECHARGE ACCOUNTS,Chelsea & Westminster NHS Foundation Holding,NHS SUPPLY CHAIN,6259303,"135,146.26"
Department of Health,Chelsea and Westminster Hospital NHS Foundation Trust,20-Jan-11,SOFTWARE LICENCES & MAINTENANCE,IC&T & EPR,BRIGHTSTRAND INTERNATIONAL LTD,6259620,"32,057.00"
Department of Health,Chelsea and Westminster Hospital NHS Foundation Trust,20-Jan-11,STOCK,Chelsea & Westminster NHS Foundation Holding,GILEAD SCIENCES LTD.,6261052,"299,492.82"
Department of Health,Chelsea and Westminster Hospital NHS Foundation Trust,20-Jan-11,STOCK,Chelsea & Westminster NHS Foundation Holding,JANSSEN-CILAG LTD,6260263,"46,489.69"
Department of Health,Chelsea and Westminster Hospital NHS Foundation Trust,24-Jan-11,SOFTWARE LICENCES & MAINTENANCE,Finance ,CAPGEMINI UK LTD,6262158,"22,500.00"
Department of Health,Chelsea and Westminster Hospital NHS Foundation Trust,24-Jan-11,SOFTWARE LICENCES & MAINTENANCE,IC&T & EPR,INSIGHT DIRECT UK LTD,6262154,"161,263.40"
Department of Health,Chelsea and Westminster Hospital NHS Foundation Trust,24-Jan-11,STOCK,Chelsea & Westminster NHS Foundation Holding,BOEHRINGER INGELHEIM LIMITED,6261063,"26,026.72"
Department of Health,Chelsea and Westminster Hospital NHS Foundation Trust,24-Jan-11,STOCK,Chelsea & Westminster NHS Foundation Holding,ST GEORGE'S HEALTHCARE NHS TRUST..,6259989,"-41,467.00"
Department of Health,Chelsea and Westminster Hospital NHS Foundation Trust,24-Jan-11,STOCK,Chelsea & Westminster NHS Foundation Holding,ST GEORGE'S HEALTHCARE NHS TRUST..,6259990,"48,923.41"
Department of Health,Chelsea and Westminster Hospital NHS Foundation Trust,28-Jan-11,AUC,Chelsea & Westminster NHS Foundation Holding,LONGCROSS CONSTRUCTION LTD,6258647,"216,928.98"
Department of Health,Chelsea and Westminster Hospital NHS Foundation Trust,28-Jan-11,AUC,Chelsea & Westminster NHS Foundation Holding,OLYMPUS KEYMED (MEDICAL & INDUSTRIAL EQUIPMENT) LTD,6263347,"74,720.20"
Department of Health,Chelsea and Westminster Hospital NHS Foundation Trust,28-Jan-11,AUC,Chelsea & Westminster NHS Foundation Holding,OLYMPUS KEYMED (MEDICAL & INDUSTRIAL EQUIPMENT) LTD,6263348,"69,962.52"
Department of Health,Chelsea and Westminster Hospital NHS Foundation Trust,28-Jan-11,DRUGS,HIV/GUM,HEALTHCARE AT HOME LIMITED,6260543,"107,517.20"
Department of Health,Chelsea and Westminster Hospital NHS Foundation Trust,28-Jan-11,DRUGS,HIV/GUM,HEALTHCARE AT HOME LIMITED,6260754,"42,602.08"
Department of Health,Chelsea and Westminster Hospital NHS Foundation Trust,28-Jan-11,RECHARGE ACCOUNTS,Chelsea & Westminster NHS Foundation Holding,NHS SUPPLY CHAIN,6260308,"56,362.08"
Department of Health,Chelsea and Westminster Hospital NHS Foundation Trust,28-Jan-11,STOCK,Chelsea & Westminster NHS Foundation Holding,HEALTHCARE AT HOME LIMITED,6261315,"58,630.00"
Department of Health,Chelsea and Westminster Hospital NHS Foundation Trust,28-Jan-11,STOCK,Chelsea & Westminster NHS Foundation Holding,HEALTHCARE AT HOME LIMITED,6261324,"41,470.00"
Department of Health,Chelsea and Westminster Hospital NHS Foundation Trust,31-Jan-11,AUC,Chelsea & Westminster NHS Foundation Holding,BAM CONSTRUCTION LTD,6259643,"1,029,146.43"
Department of Health,Chelsea and Westminster Hospital NHS Foundation Trust,31-Jan-11,CLINICAL LITIGATION,Governance & Corporate Affairs,NHS LITIGATION AUTHORITY,6264782,"512,392.00"
Department of Health,Chelsea and Westminster Hospital NHS Foundation Trust,31-Jan-11,CLINICAL LITIGATION,Governance & Corporate Affairs,NHS LITIGATION AUTHORITY,6264783,"512,392.00"
